bitfinex/quotes_ETHUSD_20250525
["timestamp","ask_amount","ask_price","bid_price","bid_amount"]
[1748214779818,0.74169905,2542.2,2542.1,0.8783]
[1748214780162,0.3665857,2542.2,2542.1,0.8783]
[1748214781268,4.30018651,2542.2,2542.1,0.8783]
[1748214781465,3.93319167,2542.5,2542.1,0.8783]
[1748214781644,3.93329137,2542.4,2542.1,1.35903]
[1748214781966,14.00424328,2542.6,2542.1,1.35903]
[1748214782150,3.93320223,2542.5,2542.2,0.8167]
[1748214782318,14.00416861,2542.6,2542.2,2.7834952]
[1748214782517,14.00416861,2542.6,2542.4,0.8167]
[1748214782762,10.07114063,2542.6,2542.4,0.8167]
[1748214783116,10.07114063,2542.6,2542.4,4.7457]
[1748214783665,14.00415413,2542.6,2542.4,4.7457]
[1748214783854,4.495,2543.1,2542.5,0.8167]
[1748214784015,3.93282663,2542.8,2542.5,0.8167]
[1748214784220,3.93290235,2542.7,2542.5,1.48793831]
[1748214784444,4.495,2543.1,2542.5,1.48793831]
[1748214784445,3.93275004,2542.8,2542.5,1.48793831]
[1748214785221,3.93285395,2542.7,2542.5,1.48793831]
[1748214785541,3.93276187,2542.8,2542.5,1.48793831]
[1748214785968,3.93298198,2542.6,2542.5,1.48793831]
[1748214786164,3.93298198,2542.6,2542.5,0.8167]
[1748214790601,0.36606618,2542.9,2542.5,0.8167]
[1748214790760,3.93276252,2542.8,2542.5,0.8167]
[1748214790960,3.93283561,2542.7,2542.5,0.8167]
[1748214791293,3.93298198,2542.6,2542.5,0.8167]
[1748214795468,3.93273336,2542.8,2542.5,0.8167]
[1748214795669,3.93285748,2542.7,2542.5,0.8167]
[1748214795899,3.93298198,2542.6,2542.5,0.8167]
[1748214798839,6.834,2543.0,2542.5,0.8167]
[1748214799123,3.93283523,2542.7,2542.5,0.8167]
[1748214799677,3.93298198,2542.6,2542.5,0.8167]
[1748214800030,3.93360081,2542.2,2542.1,0.05]
[1748214800213,6.28860081,2542.2,2542.1,0.05]
[1748214800377,7.31080902,2542.2,2542.1,0.05]
[1748214802183,7.35022457,2542.2,2542.1,0.05]
[1748214802378,7.71651536,2542.2,2542.1,0.05]
[1748214802636,7.67709981,2542.2,2542.1,0.05]
[1748214803827,16.47439981,2542.2,2542.1,0.05]
[1748214804536,26.54554044,2542.2,2542.1,0.05]
[1748214805329,26.92077518,2542.2,2542.1,0.05]
[1748214805529,27.47077518,2542.2,2542.1,0.05]
[1748214809086,31.39877518,2542.2,2542.1,0.05]
[1748214811092,35.87877518,2542.2,2542.1,0.05]
[1748214811629,27.47077518,2542.2,2542.1,0.05]
[1748214811812,14.74626697,2542.2,2542.1,0.05]
[1748214812725,14.37103223,2542.2,2542.1,0.05]
[1748214816200,14.00474144,2542.2,2542.1,0.05]
[1748214816612,16.35974144,2542.2,2542.1,0.05]
[1748214816815,14.00474144,2542.2,2542.1,0.05]
[1748214817889,10.07114063,2542.2,2542.1,0.05]
[1748214818094,14.00474144,2542.2,2542.1,0.05]
[1748214822352,16.48206838,2542.2,2542.1,0.05]
[1748214822510,27.20349672,2542.2,2542.1,0.05]
[1748214822714,32.49959672,2542.2,2542.1,0.05]
[1748214823921,32.87489737,2542.2,2542.1,0.05]
[1748214825230,14.83875555,2542.1,2542.0,3.0]
[1748214825404,23.02514783,2542.1,2542.0,3.0]
[1748214826051,27.48914783,2542.1,2542.0,3.0]
[1748214827246,28.33366888,2542.1,2542.0,3.0]
[1748214828811,27.86444848,2542.1,2542.0,3.0]
[1748214829856,37.93558911,2542.1,2542.0,3.0]
[1748214830357,38.56121631,2542.1,2542.0,3.0]
[1748214831354,31.04434546,2542.1,2542.0,3.0]
[1748214831531,42.49021631,2542.1,2542.0,3.0]
[1748214831731,41.94021631,2542.1,2542.0,3.0]
[1748214832057,42.49021631,2542.1,2542.0,1.68384645]
[1748214832230,41.86458911,2542.1,2542.0,1.68384645]
[1748214834728,29.60161826,2542.1,2542.0,1.68384645]
[1748214834943,37.74411631,2542.1,2542.0,1.68384645]
[1748214836121,37.58802382,2542.1,2542.0,1.68384645]
[1748214843888,37.11848911,2542.1,2542.0,1.68384645]
[1748214845641,37.91788911,2542.1,2542.0,1.68384645]
[1748214846252,41.84788911,2542.1,2542.0,1.68384645]
[1748214850173,42.47351631,2542.1,2542.0,1.68384645]
[1748214851972,37.74411631,2542.1,2542.0,1.68384645]
[1748214852678,37.11848911,2542.1,2542.0,1.68384645]
[1748214852876,29.05161826,2542.1,2542.0,1.68384645]
[1748214853178,21.55162517,2542.1,2542.0,1.68384645]
[1748214853485,29.55162517,2542.1,2542.0,1.68384645]
[1748214854092,30.02254246,2542.1,2542.0,1.68384645]
[1748214855439,25.57254246,2542.1,2542.0,1.68384645]
[1748214855674,11.28378691,2542.1,2542.0,2.46154645]
[1748214855889,5.14640183,2542.1,2542.0,2.7077011]
[1748214856975,4.30018389,2542.1,2542.0,2.7077011]
[1748214858068,4.30018389,2542.1,2542.0,2.46154645]
[1748214861697,0.36642834,2542.1,2542.0,2.46154645]
[1748214861905,3.93360081,2542.2,2542.1,0.757]
[1748214862714,4.30047393,2542.2,2542.1,0.757]
[1748214864031,3.93360081,2542.2,2542.1,0.757]
[1748214864203,3.93353617,2542.3,2542.1,0.757]
[1748214864571,0.37615132,2542.5,2542.2,0.757]
[1748214864770,10.07114063,2542.6,2542.2,0.757]
[1748214865015,3.93336205,2542.4,2542.2,0.757]
[1748214867621,3.93344609,2542.3,2542.2,0.757]
[1748214870423,3.93375555,2542.1,2542.0,2.43494645]
[1748214873588,3.93375555,2542.1,2542.0,1.68384645]
[1748214874104,6.28875555,2542.1,2542.0,1.68384645]
[1748214874674,6.65515398,2542.1,2542.0,1.68384645]
[1748214874916,7.03051746,2542.1,2542.0,1.68384645]
[1748214875215,8.51261949,2542.1,2542.0,1.68384645]
[1748214875378,12.96061949,2542.1,2542.0,1.68384645]
[1748214876330,21.51061949,2542.1,2542.0,1.68384645]
[1748214876484,31.58176012,2542.1,2542.0,1.68384645]
[1748214877097,32.33276012,2542.1,2542.0,1.68384645]
[1748214879423,0.74176191,2542.1,2542.0,1.68384645]
[1748214879625,0.74176191,2542.1,2542.0,4.05681057]
[1748214879819,0.74176191,2542.1,2542.0,2.48324645]
[1748214880199,0.37536348,2542.1,2542.0,2.48324645]
[1748214880720,12.81870187,2542.7,2542.0,2.48324645]
[1748214880886,3.93357788,2542.3,2542.0,3.1244711]
[1748214881086,3.41950863,2542.6,2542.0,3.1244711]
[1748214881389,3.93352054,2542.3,2542.0,3.1244711]
[1748214881613,3.93359759,2542.3,2542.0,3.1244711]
[1748214881815,3.93369011,2542.2,2542.0,3.1244711]
[1748214882086,3.93369011,2542.2,2542.0,2.48324645]
[1748214882087,3.93375555,2542.1,2542.0,2.48324645]
[1748214883718,3.93375555,2542.1,2542.0,1.68384645]
[1748214884086,4.30039333,2542.1,2542.0,1.68384645]
[1748214891015,4.30039333,2542.1,2542.0,2.50464645]
[1748214891925,6.65539333,2542.1,2542.0,1.68384645]
[1748214892128,8.19525602,2542.1,2542.0,1.68384645]
[1748214897155,4.30039333,2542.1,2542.0,1.68384645]
[1748214899148,0.36663778,2542.1,2542.0,1.68384645]
[1748214899462,4.30039333,2542.1,2542.0,1.68384645]
[1748214900859,0.36663778,2542.1,2542.0,1.68384645]
[1748214901149,4.30039333,2542.1,2542.0,1.68384645]
[1748214902579,3.93375555,2542.1,2542.0,1.68384645]
[1748214903736,4.30096314,2542.1,2542.0,1.68384645]
[1748214903943,5.12443419,2542.1,2542.0,1.68384645]
[1748214904254,3.93483906,2541.4,2541.3,0.7638]
[1748214904455,3.93483906,2541.4,2541.0,3.929]
[1748214904456,3.93514874,2541.2,2541.1,0.8138]
[1748214905029,10.07114063,2541.6,2541.1,0.8138]
[1748214905447,3.93514874,2541.2,2541.1,0.8138]
[1748214905673,3.93503359,2541.3,2541.1,0.8138]
[1748214906059,3.93514874,2541.2,2541.1,0.8138]
[1748214906475,3.93506542,2541.3,2541.1,0.8138]
[1748214906661,3.93514874,2541.2,2541.1,0.8138]
[1748214907717,3.93514874,2541.2,2541.1,0.05]
[1748214908020,4.75888537,2541.2,2541.1,0.05]
[1748214908498,4.30236766,2541.2,2541.1,0.05]
[1748214914982,4.7041595,2541.2,2541.1,0.05]
[1748214916503,7.8782595,2541.2,2541.1,0.05]
[1748214916680,4.7041595,2541.2,2541.1,0.05]
[1748214917063,4.33694058,2541.2,2541.1,0.05]
[1748214921691,6.69594058,2541.2,2541.1,0.05]
[1748214924910,3.93514874,2541.2,2541.1,0.05]
[1748214925072,3.93514874,2541.2,2541.1,0.8068]
[1748214925409,3.93514874,2541.2,2541.1,0.05]
[1748214926704,0.36721892,2541.3,2541.1,0.05]
[1748214926878,3.93514874,2541.2,2541.1,0.05]
[1748214931737,6.29414874,2541.2,2541.1,0.05]
[1748214931899,3.93514874,2541.2,2541.1,0.05]
[1748214932742,4.30247204,2541.2,2541.1,0.05]
[1748214932916,5.7777369,2541.2,2541.1,0.05]
[1748214933929,8.1367369,2541.2,2541.1,0.05]
[1748214941345,8.6867369,2541.2,2541.1,0.05]
[1748214942924,16.6867369,2541.2,2541.1,0.05]
[1748214943350,8.1367369,2541.2,2541.1,0.05]
[1748214945267,7.03714373,2541.2,2541.1,0.05]
[1748214948226,3.93576826,2540.8,2540.7,0.7776]
[1748214948475,4.30309156,2540.8,2540.7,0.7776]
[1748214951750,3.9361807,2540.6,2540.5,0.8081]
[1748214952266,2.359,2541.1,2540.5,0.8081]
[1748214952463,3.93600828,2540.7,2540.5,0.8081]
[1748214952671,3.93600828,2540.7,2540.6,0.47381]
[1748214952886,3.9358564,2540.8,2540.6,0.47381]
[1748214953041,0.36792499,2540.7,2540.6,0.47381]
[1748214953751,0.36792499,2540.7,2540.6,1.26731]
[1748214954167,3.93580231,2540.8,2540.6,1.26731]
[1748214954753,3.93592317,2540.7,2540.6,1.26731]
[1748214955486,3.93592317,2540.7,2540.1,0.05]
[1748214955780,3.93654956,2540.3,2540.2,4.7303]
[1748214959089,3.93654956,2540.3,2540.2,0.8003]
[1748214959258,3.93654956,2540.3,2540.2,4.7303]
[1748214959981,3.93654956,2540.3,2540.2,0.8003]
[1748214960188,3.93654956,2540.3,2540.2,4.7313]
[1748214961790,6.29554956,2540.3,2540.2,4.7313]
[1748214961958,3.93630414,2540.5,2540.2,4.7313]
[1748214962287,8.0,2540.4,2540.2,4.7313]
[1748214962486,3.93639095,2540.4,2540.2,4.7313]
[1748214962663,3.93654292,2540.3,2540.2,4.7313]
[1748214964689,3.93654292,2540.3,2540.2,0.8003]
[1748214964992,3.93669789,2540.2,2540.1,0.05]
[1748214965178,3.93669789,2540.2,2540.1,3.981]
[1748214966496,13.52402197,2540.2,2540.1,0.05]
[1748214967049,13.89178869,2540.2,2540.1,0.05]
[1748214967470,15.09886511,2540.2,2540.1,0.05]
[1748214968352,7.09886511,2540.2,2540.1,0.05]
[1748214968854,6.72228869,2540.2,2540.1,0.05]
[1748214969472,5.89178869,2540.2,2540.1,0.05]
[1748214971221,8.25078869,2540.2,2540.1,0.05]
[1748214972100,34.55707794,2540.2,2540.1,0.05]
[1748214972503,25.03593731,2540.2,2540.1,0.05]
[1748214973117,21.42348869,2540.2,2540.1,0.05]
[1748214973533,22.42763623,2540.2,2540.1,0.05]
[1748214973995,18.01563623,2540.2,2540.1,0.05]
[1748214974196,7.66761215,2540.2,2540.1,0.05]
[1748214974510,15.03972243,2540.2,2540.1,0.05]
[1748214974708,7.03972243,2540.2,2540.1,0.05]
[1748214975747,7.49446461,2540.2,2540.1,0.05]
[1748214976909,7.87072243,2540.2,2540.1,0.05]
[1748214977817,7.03972243,2540.2,2540.1,0.05]
[1748214978424,20.218256,2540.2,2540.1,0.05]
[1748214978629,20.17884045,2540.2,2540.1,0.05]
[1748214978934,17.11639183,2540.2,2540.1,0.05]
[1748214980029,17.49264965,2540.2,2540.1,0.05]
[1748214980207,20.55509827,2540.2,2540.1,0.05]
[1748214981231,21.10509827,2540.2,2540.1,0.05]
[1748214982014,25.03709827,2540.2,2540.1,0.05]
[1748214982194,29.17409827,2540.2,2540.1,0.05]
[1748214982546,15.12964826,2539.2,2539.1,0.05]
[1748214982762,22.59209688,2539.2,2539.1,0.05]
[1748214982910,23.14209688,2539.2,2539.1,0.05]
[1748214983292,26.57231222,2539.2,2539.1,0.05]
[1748214983533,30.70931222,2539.2,2539.1,0.05]
[1748214983715,33.88164408,2539.2,2539.1,0.05]
[1748214984237,26.41919546,2539.2,2539.1,0.05]
[1748214984452,35.755343,2539.2,2539.1,0.05]
[1748214984798,27.423343,2539.2,2539.1,0.05]
[1748214985006,35.755343,2539.2,2539.1,0.05]
[1748214985653,31.618343,2539.2,2539.1,0.05]
[1748214985816,31.45885161,2539.2,2539.1,0.05]
[1748214986017,23.12685161,2539.2,2539.1,0.05]
[1748214986336,31.45885161,2539.2,2539.1,0.05]
[1748214987225,34.0529019,2539.2,2539.1,0.05]
[1748214988154,34.4449091,2539.2,2539.1,0.05]
[1748214988313,31.38246048,2539.2,2539.1,0.05]
[1748214988943,37.52260111,2539.2,2539.1,0.05]
[1748214989148,22.71875249,2539.2,2539.1,0.05]
[1748214989447,19.54642063,2539.2,2539.1,0.05]
[1748214989609,22.77765391,2539.2,2539.1,0.05]
[1748214990644,25.13665391,2539.2,2539.1,0.05]
[1748214990842,26.08849609,2539.2,2539.1,0.05]
[1748214991049,29.39740299,2539.2,2539.1,0.05]
[1748214991706,32.45985161,2539.2,2539.1,0.05]
[1748214991909,29.39740299,2539.2,2539.1,0.05]
[1748214992252,29.76274338,2539.2,2539.1,0.05]
[1748214992946,37.227192,2539.2,2539.1,0.05]
[1748214993246,32.825192,2539.2,2539.1,0.05]
[1748214993445,37.227192,2539.2,2539.1,0.05]
[1748214994172,37.60122504,2539.2,2539.1,0.05]
[1748214995052,7.62926875,2538.8,2538.1,0.05]
[1748214995219,11.37861338,2538.8,2538.1,0.05]
[1748214995949,11.75264642,2538.8,2538.1,0.05]
[1748214996149,12.11798681,2538.8,2538.1,0.05]
[1748214996747,34.27612744,2538.8,2538.7,1e-08]
[1748214997125,30.13912744,2538.8,2538.7,1e-08]
[1748214997738,38.47512744,2538.8,2538.7,1e-08]
[1748214998065,41.55307916,2538.8,2538.7,1e-08]
[1748214998948,42.02147749,2538.8,2538.7,1e-08]
[1748214999149,33.68547749,2538.8,2538.7,1e-08]
[1748214999714,38.08847749,2538.8,2538.7,1e-08]
[1748215003122,27.54507715,2538.8,2538.7,1e-08]
[1748215003425,23.94807715,2538.8,2538.7,1e-08]
[1748215003623,31.94807715,2538.8,2538.7,1e-08]
[1748215004659,3.93979985,2538.2,2538.1,0.8028]
[1748215005365,11.93979985,2538.2,2538.1,0.8028]
[1748215005572,14.29879985,2538.2,2538.1,0.05]
[1748215005752,15.88674762,2538.2,2538.1,0.05]
[1748215007395,14.6649021,2538.2,2538.1,0.05]
[1748215007743,15.03979249,2538.2,2538.1,0.05]
[1748215009390,19.43179249,2538.2,2538.1,0.05]
[1748215009553,29.45293312,2538.2,2538.1,0.05]
[1748215010155,26.87709283,2538.2,2538.1,0.05]
[1748215010351,29.9587699,2538.2,2538.1,0.05]
[1748215012250,34.0957699,2538.2,2538.1,0.05]
[1748215013134,6.30035267,2537.2,2537.1,0.8781]
[1748215013396,3.94135267,2537.2,2537.1,0.8781]
[1748215014284,4.33110259,2537.2,2537.1,0.8781]
[1748215016091,3.94135267,2537.2,2537.1,0.8781]
[1748215021710,0.37587219,2537.4,2537.3,1.57647893]
[1748215022014,0.37587219,2537.4,2537.3,2.39987893]
[1748215022390,0.37587219,2537.4,2537.3,10.39987893]
[1748215022988,0.38530564,2538.0,2537.8,0.8234]
[1748215023173,6.29888436,2538.2,2537.9,0.8234]
[1748215023377,6.29873502,2538.3,2537.9,0.8234]
[1748215023588,4.31542458,2538.4,2537.9,0.8234]
[1748215023786,4.30705834,2538.3,2537.9,0.8234]
[1748215024005,3.93979985,2538.2,2537.9,0.8234]
[1748215024204,3.93979985,2538.2,2538.0,0.49993607]
[1748215024710,0.38786385,2538.2,2538.0,0.49993607]
[1748215024915,3.93993811,2538.2,2538.0,0.49993607]
[1748215025113,3.93993811,2538.2,2538.1,0.7779]
[1748215025973,3.93955334,2538.4,2538.1,0.7779]
[1748215026206,3.93977765,2538.3,2538.1,0.7779]
[1748215026515,3.93979985,2538.2,2538.1,0.7779]
[1748215027280,4.33124463,2538.2,2538.1,0.7779]
[1748215028313,0.39144478,2538.2,2538.1,0.7779]
[1748215028503,3.93971564,2538.3,2538.1,1.24919]
[1748215028812,3.93935767,2538.5,2538.1,1.24919]
[1748215028813,4.30645414,2538.5,2538.1,1.24919]
[1748215029117,3.93955848,2538.4,2538.2,0.7794]
[1748215029501,3.93964464,2538.3,2538.2,0.7794]
[1748215030416,0.39742524,2538.4,2538.2,0.7794]
[1748215030615,2.359,2538.4,2537.6,0.7794]
[1748215030789,7.0994876,2538.3,2537.6,0.7794]
[1748215030995,0.36710881,2538.3,2537.7,0.7794]
[1748215031213,0.36710881,2538.3,2537.5,9.57634459]
[1748215031214,0.36710881,2538.3,2538.0,2.3554087]
[1748215031416,0.36710881,2538.3,2538.0,6.2904087]
[1748215031616,0.36710881,2538.3,2538.0,4.7144]
[1748215031820,0.39151044,2538.4,2538.1,0.7794]
[1748215032029,3.93937263,2538.5,2538.2,0.62904074]
[1748215032625,3.93919615,2538.6,2538.2,0.62904074]
[1748215032824,3.93948635,2538.5,2538.2,0.62904074]
[1748215033332,3.93942804,2538.5,2538.2,0.62904074]
[1748215033626,10.41265107,2538.7,2538.2,0.66843386]
[1748215033824,3.93940771,2538.5,2538.2,0.62904074]
[1748215034031,10.41265107,2538.7,2538.3,2.35522714]
[1748215034228,3.93875418,2538.9,2538.5,0.7794]
[1748215034229,3.93880569,2538.9,2538.5,0.7794]
[1748215034524,3.93892335,2538.8,2538.5,0.7794]
[1748215035734,3.93877625,2538.9,2538.5,0.7794]
[1748215037629,13.13414063,2539.3,2538.5,2.35511695]
[1748215037835,3.93873263,2538.9,2538.6,0.65885437]
[1748215038032,3.93861308,2539.0,2538.6,0.65885437]
[1748215038238,3.93861308,2539.0,2538.6,0.69824113]
[1748215038405,3.93868903,2539.0,2538.7,3.934]
[1748215038730,4.33259166,2539.0,2538.7,3.934]
[1748215038896,3.93873381,2538.9,2538.7,3.934]
[1748215039099,3.93873381,2538.9,2538.5,0.7794]
[1748215039100,3.93887468,2538.8,2538.5,4.7134]
[1748215039728,3.93879521,2538.9,2538.5,4.7134]
[1748215040032,3.93879521,2538.9,2538.5,5.37215948]
[1748215041410,3.93831373,2539.2,2538.5,5.37215948]
[1748215041602,3.93855848,2539.0,2538.5,6.94788201]
[1748215042430,12.78223763,2539.3,2538.5,6.94788201]
[1748215042833,3.9386794,2539.0,2538.5,6.94788201]
[1748215043022,3.93873272,2538.9,2538.6,0.72463088]
[1748215044040,3.93845739,2539.1,2538.7,0.7511]
[1748215045133,3.93854641,2539.1,2538.7,0.7511]
[1748215045639,3.93831383,2539.2,2538.7,2.3266957]
[1748215045845,3.93825258,2539.2,2538.7,2.32667959]
[1748215046047,3.93841478,2539.1,2538.7,2.32667959]
[1748215046251,3.93841478,2539.1,2538.7,3.18278191]
[1748215047334,3.93841478,2539.1,2538.7,1.60720232]
[1748215047633,10.42323763,2539.3,2538.8,0.7726]
[1748215047843,3.93825057,2539.2,2538.9,3.934]
[1748215049653,4.34028139,2539.3,2538.9,3.934]
[1748215049949,3.93818439,2539.3,2538.9,3.934]
[1748215050151,4.30484734,2539.3,2538.9,3.934]
[1748215051025,3.93818439,2539.3,2538.9,3.934]
[1748215051254,3.93825883,2539.2,2538.9,3.934]
[1748215051913,3.93807292,2539.4,2538.9,6.22327033]
[1748215052119,3.93809809,2539.3,2538.9,6.22327033]
[1748215053660,3.93803023,2539.4,2539.0,0.7778]
[1748215054052,3.93803023,2539.4,2539.0,2.35322172]
[1748215054857,3.93803023,2539.4,2539.0,0.7778]
[1748215055234,3.93778858,2539.5,2539.0,1.63546169]
[1748215055436,3.93796416,2539.4,2539.0,3.21084799]
[1748215055624,0.36702262,2539.3,2539.0,3.21084799]
[1748215056819,0.36702262,2539.3,2539.0,1.63546169]
[1748215057017,2.359,2539.3,2538.7,0.7593]
[1748215057258,3.93885606,2538.9,2538.7,4.6923]
[1748215057440,3.93886875,2538.8,2538.7,4.6923]
[1748215057641,3.93880275,2538.9,2538.7,4.6923]
[1748215058425,3.93928847,2538.6,2538.2,0.7559]
[1748215058626,3.93880899,2538.9,2538.4,1.57575803]
[1748215058833,3.93889785,2538.8,2538.5,0.7559]
[1748215059061,3.93871361,2538.9,2538.5,0.7559]
[1748215059461,0.37546767,2539.1,2538.6,1.57564098]
[1748215059665,4.31391806,2539.1,2538.6,1.5756364]
[1748215059829,4.31391806,2539.1,2538.7,3.933]
[1748215060031,3.93856319,2539.0,2538.7,3.933]
[1748215060662,0.3675833,2539.1,2538.7,5.50858151]
[1748215060961,0.3675833,2539.1,2538.7,3.933]
[1748215061161,0.3675833,2539.1,2538.8,0.03938431]
[1748215061468,4.756104,2539.4,2538.8,2.33142258]
[1748215061674,3.93832897,2539.2,2538.8,0.7559]
[1748215061969,3.93809317,2539.3,2538.8,2.33142348]
[1748215062167,3.93831784,2539.2,2538.8,0.7559]
[1748215063128,0.36795838,2539.1,2538.8,0.7559]
[1748215063768,0.36795838,2539.0,2538.8,0.7559]
[1748215065459,3.93843128,2539.1,2538.8,0.7559]
[1748215065673,3.93833273,2539.2,2538.8,1.38235089]
[1748215066230,0.8181,2539.4,2538.8,1.38235089]
[1748215066577,3.93809963,2539.3,2538.9,1.57547529]
[1748215066871,0.36808548,2539.2,2538.9,1.57547529]
[1748215067074,0.36808548,2539.2,2539.0,1.57539696]
[1748215067291,0.36808548,2539.2,2538.9,0.8466394]
[1748215067583,3.93803234,2539.4,2538.9,2.42209243]
[1748215067763,3.93787126,2539.5,2539.0,1.57542229]
[1748215068080,3.93802657,2539.4,2538.9,2.42208713]
[1748215068655,4.30618656,2539.3,2538.9,0.8466394]
[1748215069050,4.30618656,2539.3,2538.8,2.33141783]
[1748215069568,4.30618656,2539.3,2538.9,1.57547699]
[1748215069762,0.36798476,2539.3,2538.9,1.57547699]
[1748215069965,0.38792306,2539.6,2539.2,0.7655]
[1748215070137,3.93787655,2539.5,2539.2,4.6985]
[1748215070341,3.93796364,2539.4,2539.2,4.6985]
[1748215070747,10.02114063,2539.7,2539.3,1.57520281]
[1748215070953,0.798,2539.8,2539.2,4.6985]
[1748215071158,3.93809317,2539.3,2539.2,3.933]
[1748215071678,0.36792958,2539.3,2539.2,3.933]
[1748215072376,3.93786102,2539.5,2539.2,3.933]
[1748215072569,3.93796624,2539.4,2539.2,3.933]
[1748215075083,3.93794279,2539.4,2539.2,3.933]
[1748215076049,3.93809317,2539.3,2539.2,3.933]
[1748215076452,3.4959802,2539.3,2539.2,3.933]
[1748215077789,0.36788703,2539.3,2539.2,3.933]
[1748215078491,4.3059802,2539.3,2539.2,3.933]
[1748215078655,0.36788703,2539.3,2539.2,3.933]
[1748215081961,4.34078397,2539.6,2539.2,5.5082993]
[1748215082168,0.52006757,2539.9,2539.3,0.7717]
[1748215082397,4.45734601,2539.9,2539.4,1.57515041]
[1748215082557,4.45733931,2539.9,2539.4,1.57517523]
[1748215082759,4.45733931,2539.9,2539.5,0.39220974]
[1748215083060,0.74458116,2539.8,2539.5,0.39220974]
[1748215083290,0.74458116,2539.8,2539.6,3.933]
[1748215083995,4.6819079,2539.8,2539.6,3.933]
[1748215084195,0.77289796,2539.8,2539.3,0.7717]
[1748215084405,0.77289796,2539.8,2538.3,0.55]
[1748215084406,3.93778302,2539.5,2538.9,0.7717]
[1748215084609,3.93853497,2539.1,2538.9,0.7717]
[1748215084902,3.93898284,2538.8,2538.7,3.933]
[1748215085191,3.93878984,2538.9,2538.4,10.3474957]
[1748215085395,3.93874742,2538.9,2538.6,3.933]
[1748215085893,0.8106,2539.2,2538.6,5.50866552]
[1748215085894,3.93862524,2539.0,2538.6,5.50866552]
[1748215086070,3.93862524,2539.0,2538.6,3.933]
[1748215086466,11.93848229,2539.1,2538.6,5.50866779]
[1748215087187,3.9385613,2539.0,2538.6,3.933]
[1748215087364,3.93846256,2539.1,2538.6,2.46473321]
[1748215087562,3.93846256,2539.1,2538.7,3.933]
[1748215088073,3.93846256,2539.1,2538.7,5.50860365]
[1748215088468,12.74887694,2539.2,2538.7,3.933]
[1748215088673,3.93847552,2539.1,2538.7,3.933]
[1748215088885,3.93863697,2539.0,2538.7,3.933]
[1748215089261,8.8106,2539.2,2538.7,6.05946644]
[1748215089456,3.93841292,2539.1,2538.7,6.05946644]
[1748215089889,3.93841292,2539.1,2538.7,6.0594705]
[1748215090195,3.93859559,2539.0,2538.7,4.48387016]
[1748215090380,3.93873955,2538.9,2538.8,3.933]
[1748215090559,3.93873955,2538.9,2538.4,2.3474671]
[1748215090757,3.93873955,2538.9,2538.5,3.933]
[1748215091169,3.93873955,2538.9,2538.5,5.5087323]
[1748215091373,3.93873955,2538.9,2538.6,0.62804323]
[1748215091710,7.48457542,2539.2,2538.6,0.62804323]
[1748215091867,3.93878744,2538.9,2538.5,3.933]
[1748215092065,0.36793579,2539.1,2538.5,3.933]
[1748215092262,3.93895256,2538.8,2538.5,3.933]
[1748215092668,3.93879309,2538.9,2538.5,3.933]
[1748215092903,3.93879309,2538.9,2538.5,4.71863391]
[1748215093466,4.31512029,2539.1,2538.5,6.29435876]
[1748215093661,3.93855848,2539.0,2538.5,6.29435876]
[1748215094620,3.93855848,2539.0,2538.5,4.71863391]
[1748215094912,3.93855848,2539.0,2538.6,1.57565528]
[1748215095116,3.93855848,2539.0,2538.7,0.62942892]
[1748215096098,3.93847434,2539.1,2538.7,0.62942892]
[1748215097129,3.93862801,2539.0,2538.7,0.62942892]
[1748215097516,2.359,2539.2,2538.8,0.8311]
[1748215098027,3.9385014,2539.1,2538.8,0.8311]
[1748215098415,3.93864698,2539.0,2538.8,0.8311]
[1748215098617,3.93871361,2538.9,2538.7,4.56242892]
[1748215099008,3.93862203,2539.0,2538.7,4.56242892]
[1748215100036,2.359,2539.2,2538.7,0.62942892]
[1748215100204,6.29771361,2538.9,2538.3,0.8311]
[1748215100537,3.9390239,2538.7,2538.6,3.933]
[1748215100771,10.38904287,2539.1,2538.7,0.8166]
[1748215100893,10.38904287,2539.1,2539.0,2.39202339]
[1748215101091,0.36790224,2539.1,2539.0,6.32502339]
[1748215101826,0.47006757,2539.3,2539.0,6.32502339]
[1748215102801,3.93771063,2539.6,2539.1,1.57535672]
[1748215103003,3.937692,2539.6,2539.1,1.57535672]
[1748215103205,3.937692,2539.6,2539.2,0.63249567]
[1748215103404,3.93780405,2539.5,2539.2,0.63249567]
[1748215103829,3.93798237,2539.4,2539.2,0.63249567]
[1748215104032,3.93798237,2539.4,2539.3,3.933]
[1748215104235,3.93768871,2539.6,2539.3,3.933]
[1748215104236,3.93781011,2539.5,2539.3,3.933]
[1748215104958,10.02114063,2539.7,2539.3,3.933]
[1748215105142,3.93789709,2539.5,2539.3,3.933]
[1748215106561,10.02114063,2539.7,2539.3,3.933]
[1748215106720,13.95871044,2539.7,2539.4,1.2099]
[1748215106920,0.36753014,2539.6,2539.4,1.2099]
[1748215107935,4.30516512,2539.6,2539.4,1.2099]
[1748215108133,0.36753014,2539.6,2539.4,1.2099]
[1748215108350,10.02114063,2539.7,2539.5,0.67180779]
[1748215108848,3.93747422,2539.7,2539.5,0.67180779]
[1748215109053,3.93762797,2539.6,2539.3,3.933]
[1748215109358,0.8143,2539.8,2539.2,0.831]
[1748215109359,3.93747292,2539.7,2539.2,0.831]
[1748215109558,3.93809317,2539.3,2538.9,0.831]
[1748215109746,3.93828831,2539.2,2539.0,3.932]
[1748215109958,3.93840337,2539.1,2539.0,0.68134842]
[1748215110119,3.93833841,2539.2,2539.0,0.68134842]
[1748215110326,3.93833841,2539.2,2539.1,3.932]
[1748215111057,3.93817262,2539.3,2539.1,3.932]
[1748215111946,10.02114063,2539.6,2539.2,0.8074]
[1748215112260,3.93780632,2539.5,2539.2,1.34947484]
[1748215113130,13.95884531,2539.6,2539.2,1.34947484]
[1748215114065,10.02114063,2539.6,2539.3,1.57522815]
[1748215114264,10.02114063,2539.6,2539.4,3.933]
[1748215114472,13.9587778,2539.6,2539.4,3.933]
[1748215114964,10.02114063,2539.6,2539.4,3.933]
[1748215115128,13.95882488,2539.6,2539.4,3.933]
[1748215115332,10.02114063,2539.6,2539.4,3.933]
[1748215115643,3.93765156,2539.6,2539.4,3.933]
[1748215116169,4.33728875,2539.8,2539.4,4.61877182]